Cogmind - Beta 13 @@@ ROGUE MODE // 2024.04.15 @ 02:31:15 Player: ToasterKoishi Result: Destroyed by S-27 Virus with Autogun Performance ------------- Evolutions (6) 3000 Regions Visited (11) 2200 Robots Destroyed (0) 0 Value Destroyed (0) 0 Prototype IDs (0) 0 Alien Tech Used (0) 0 Bonus (4080) 4080 TOTAL SCORE: 9280 Bonus ------- Pacifist 2880 Entered Garrisons 200 Used RIF Installer 500 Entered DSFs 500 Cogmind --------- Core Integrity 0/1150 Matter 300/300 Energy 98/100 System Corruption 0% Temperature Cool (0) Movement Core (50) Location -4/Upper Caves Parts ------- > --- POWER (1) -------- (None) > --- PROPULSION (2) --- (None) > --- UTILITY (14) ----- (None) > --- WEAPON (2) ------- (None) > --- INVENTORY (5) ---- Medium Matter Pod (100) Improved Remote Datajack Peak State ------------ > --- POWER ------------ (None) > --- PROPULSION ------- (None) > --- UTILITY ---------- Cryofiber Web Improved Hacking Suite Improved Hacking Suite Improved Hacking Suite Improved Hacking Suite Improved Hacking Suite Improved Hacking Suite > --- WEAPON ----------- (None) > --- INVENTORY -------- Medium Matter Pod [Rating: 33] Favorites ----------- Power None Propulsion None Utility Improved Hacking Suite Device Cryofiber Web Hackware Improved Hacking Suite Weapon Improved Remote Datajack Special Weapon Improved Remote Datajack Build | -11 -10 -9 -9 -9 -8 -7 -7 -6 -5 -4 -4 ------- Run | Yrd Mat Mat Sto Gar Mat Fac DSF Fac Fac Fac Upp Slots Evolved 12 | . . 2 . . 2 2 . 2 2 2 . Power . | . . . . . . . . . . . . Propulsion . | . . . . . . . . . . . . Utility 12 | . . 2 . . 2 2 . 2 2 2 . Weapon . | . . . . . . . . . . . . Parts Attached 8 | . . . . . 1 . 6 . 1 . . Power . | . . . . . . . . . . . . Engine . | . . . . . . . . . . . . Core . | . . . . . . . . . . . . Reactor . | . . . . . . . . . . . . Propulsion . | . . . . . . . . . . . . Treads . | . . . . . . . . . . . . Leg . | . . . . . . . . . . . . Wheel . | . . . . . . . . . . . . Hover . | . . . . . . . . . . . . Flight . | . . . . . . . . . . . . Utility 7 | . . . . . 1 . 6 . . . . Device 1 | . . . . . 1 . . . . . . Storage . | . . . . . . . . . . . . Processor . | . . . . . . . . . . . . Hackware 6 | . . . . . . . 6 . . . . Protection . | . . . . . . . . . . . . Artifact . | . . . . . . . . . . . . Weapon 1 | . . . . . . . . . 1 . . Energy Gun . | . . . . . . . . . . . . Energy Cannon . | . . . . . . . . . . . . Ballistic Gun . | . . . . . . . . . . . . Ballistic Cannon . | . . . . . . . . . . . . Launcher . | . . . . . . . . . . . . Special Weapon 1 | . . . . . . . . . 1 . . Impact Weapon . | . . . . . . . . . . . . Slashing Weapon . | . . . . . . . . . . . . Piercing Weapon . | . . . . . . . . . . . . Special Melee Weapon . | . . . . . . . . . . . . Unidentified Prototypes . | . . . . . . . . . . . . Parts Lost 6 | . . . . . . . 2 1 3 . . Power . | . . . . . . . . . . . . Propulsion . | . . . . . . . . . . . . Utility 6 | . . . . . . . 2 1 3 . . Weapon . | . . . . . . . . . . . . Highest Loss Streak 2 | . . . . . . . 2 1 1 . . To Critical Strikes . | . . . . . . . . . . . . Average Slot Usage (%) 8 | . . . . . 9 7 38 27 8 . . Device 1 | . . . . . 9 7 7 2 . . . Hackware 7 | . . . . . . . 31 25 8 . . Naked Turns 489 | . 33 17 61 79 4 . . . 3 185 107 Heaviest Build 1 | . . . . . 1 1 1 1 . . . Greatest Support 3 | 3 3 3 3 3 3 3 3 3 3 3 3 Greatest Overweight (x) . | . . . . . . . . . . . . Average Overweight (x) . | . . . . . . . . . . . . Largest Inventory Capacity 5 | 5 5 5 5 5 5 5 5 5 5 5 5 Average Capacity 5 | 5 5 5 5 5 5 5 5 5 5 5 5 Most Carried 2 | . 1 1 1 1 1 1 1 1 2 2 2 Average Carried 1 | . . 1 1 1 1 1 1 1 1 2 2 Final Capacity 5 | 5 5 5 5 5 5 5 5 5 5 5 5 Final Carried 2 | . 1 1 1 1 1 1 1 1 2 2 2 Class Distribution -------------------- 70% | Mutant 24% | Hacker-Mutant 5% | Wizard-Mutant Dominant Class ---------------- Mutant | -10/Materials Mutant | -9/Materials Mutant | -9/Storage Mutant | -9/Garrison Mutant | -8/Materials Mutant | -7/Factory Wizard-Mutant | -7/DSF Hacker-Mutant | -6/Factory Mutant | -5/Factory Mutant | -4/Factory Mutant | -4/Upper Caves Resources | -11 -10 -9 -9 -9 -8 -7 -7 -6 -5 -4 -4 ----------- Run | Yrd Mat Mat Sto Gar Mat Fac DSF Fac Fac Fac Upp Matter Collected 296 | 195 . . . . . . 6 15 80 . . Remotely . | . . . . . . . . . . . . Salvage Created . | . . . . . . . . . . . . Parts . | . . . . . . . . . . . . Haulers Intercepted . | . . . . . . . . . . . . Recyclers Shooed . | . . . . . . . . . . . . Parts Field Recycled . | . . . . . . . . . . . . Retrieved Matter . | . . . . . . . . . . . . Parts Self-Destructed . | . . . . . . . . . . . . Prevented . | . . . . . . . . . . . . Kills | -11 -10 -9 -9 -9 -8 -7 -7 -6 -5 -4 -4 ------- Run | Yrd Mat Mat Sto Gar Mat Fac DSF Fac Fac Fac Upp Combat Hostiles Destroyed . | . . . . . . . . . . . . Classes Destroyed . | . . . . . . . . . . . . Best Kill Streak . | . . . . . . . . . . . . Combat Bots Only . | . . . . . . . . . . . . Max Kills in Single Turn . | . . . . . . . . . . . . Gunslinging . | . . . . . . . . . . . . Exploded . | . . . . . . . . . . . . Melee . | . . . . . . . . . . . . Uniques/NPCs Destroyed . | . . . . . . . . . . . . Combat | -11 -10 -9 -9 -9 -8 -7 -7 -6 -5 -4 -4 -------- Run | Yrd Mat Mat Sto Gar Mat Fac DSF Fac Fac Fac Upp Hostile Shots Fired 360 | . 8 6 15 52 15 . 33 55 79 22 75 Missed 148 | . 3 4 6 24 9 . 14 20 37 9 22 Damage Taken 4008 | 1 68 32 81 228 79 . 691 843 824 304 857 Core 3886 | 1 68 32 81 228 77 . 650 810 778 304 857 Absorbed by Shields 5 | . . . . . . . 5 . . . . Core Remaining (%) 43 | 99 72 . . 14 86 . 7 4 22 . . Volleys Fired . | . . . . . . . . . . . . Largest . | . . . . . . . . . . . . Hottest . | . . . . . . . . . . . . Shots Fired . | . . . . . . . . . . . . Gun . | . . . . . . . . . . . . Cannon . | . . . . . . . . . . . . Launcher . | . . . . . . . . . . . . Special . | . . . . . . . . . . . . Kinetic . | . . . . . . . . . . . . Thermal . | . . . . . . . . . . . . Explosive . | . . . . . . . . . . . . Electromagnetic . | . . . . . . . . . . . . Robot Hit Streak . | . . . . . . . . . . . . Robot Miss Streak . | . . . . . . . . . . . . Penetration Max . | . . . . . . . . . . . . Secondary Targets . | . . . . . . . . . . . . Shots Hit Robots . | . . . . . . . . . . . . Core Hits 3 | . . . . . 1 . . 1 . 1 . Critical Kills . | . . . . . . . . . . . . Critical Parts Destroyed . | . . . . . . . . . . . . Critical Strikes . | . . . . . . . . . . . . Melee Attacks . | . . . . . . . . . . . . Impact . | . . . . . . . . . . . . Slashing . | . . . . . . . . . . . . Piercing . | . . . . . . . . . . . . Sneak Attacks . | . . . . . . . . . . . . Combat Hostiles . | . . . . . . . . . . . . Follow-up Attacks . | . . . . . . . . . . . . Damage Inflicted 128 | 3 . . . . 25 . . 39 14 47 . Guns . | . . . . . . . . . . . . Cannons . | . . . . . . . . . . . . Explosions . | . . . . . . . . . . . . Melee . | . . . . . . . . . . . . Ramming 128 | 3 . . . . 25 . . 39 14 47 . Kinetic . | . . . . . . . . . . . . Thermal . | . . . . . . . . . . . . Explosive . | . . . . . . . . . . . . Electromagnetic . | . . . . . . . . . . . . Impact . | . . . . . . . . . . . . Slashing . | . . . . . . . . . . . . Piercing . | . . . . . . . . . . . . Highest Corruption 5 | . . . . . 2 . . . 5 . . Average Corruption 3 | . . . . . 2 . . . 3 . . Corruption Purged . | . . . . . . . . . . . . Corruption Blocked . | . . . . . . . . . . . . Effects 5 | . . . . . 1 . . . 4 . . Matter Fused 1 | . . . . . 1 . . . . . . Heat Flow Errors 2 | . . . . . . . . . 2 . . Energy Discharges 1 | . . . . . . . . . 1 . . Data Loss (minor) 1 | . . . . . . . . . 1 . . Overload Shots . | . . . . . . . . . . . . Overflow Damage . | . . . . . . . . . . . . Projectiles . | . . . . . . . . . . . . Explosions . | . . . . . . . . . . . . Melee . | . . . . . . . . . . . . Knockbacks . | . . . . . . . . . . . . Impact . | . . . . . . . . . . . . Kinetic . | . . . . . . . . . . . . Secondary . | . . . . . . . . . . . . Self-Inflicted Damage 58 | 1 . . . . 10 . . 18 7 22 . Shots . | . . . . . . . . . . . . Rammed 29 | 1 . . . . 6 . . 10 3 9 . Targets Rammed 29 | 1 . . . . 6 . . 10 3 9 . Kicked . | . . . . . . . . . . . . Crushed . | . . . . . . . . . . . . Highest Temperature 91 | . . . . . . . . . 91 . . Average Temperature 49 | . . . . . . . . . 49 . . Received Heat Transfer 282 | . 39 . 9 6 . . . 42 99 78 9 Siege Activations . | . . . . . . . . . . . . Robots Corrupted . | . . . . . . . . . . . . Combat Hostiles . | . . . . . . . . . . . . Parts Fried . | . . . . . . . . . . . . Impact Corruptions . | . . . . . . . . . . . . Robots Melted . | . . . . . . . . . . . . Combat Hostiles . | . . . . . . . . . . . . Parts Melted . | . . . . . . . . . . . . Heat Transferred . | . . . . . . . . . . . . Parts Sabotaged . | . . . . . . . . . . . . Parts Stolen . | . . . . . . . . . . . . Parts Stripped . | . . . . . . . . . . . . Power Chain Reactions . | . . . . . . . . . . . . Alert | -11 -10 -9 -9 -9 -8 -7 -7 -6 -5 -4 -4 ------- Run | Yrd Mat Mat Sto Gar Mat Fac DSF Fac Fac Fac Upp Peak Influence 271 | . 23 24 80 81 48 21 33 75 271 252 . Initial 127 | . . 9 9 52 39 21 18 6 36 127 . Average 102 | . 13 11 36 56 42 21 21 54 156 177 . Maximum Alert Level 1 | . . . . . . . . . 1 1 . Low Security (%) 84 | 100 100 100 100 100 100 100 100 100 70 68 . Level 1 15 | . . . . . . . . . 29 31 . Level 2 . | . . . . . . . . . . . . Level 3 . | . . . . . . . . . . . . Level 4 . | . . . . . . . . . . . . Level 5 . | . . . . . . . . . . . . High Security . | . . . . . . . . . . . . Max Security . | . . . . . . . . . . . . Squads Dispatched 9 | . . . 1 . 1 . . 4 2 1 . Investigation 4 | . . . 1 . 1 . . 1 1 . . Extermination . | . . . . . . . . . . . . Reinforcement 5 | . . . . . . . . 3 1 1 . Assault . | . . . . . . . . . . . . Garrison . | . . . . . . . . . . . . Intercept . | . . . . . . . . . . . . Searches Triggered . | . . . . . . . . . . . . Construction Impeded . | . . . . . . . . . . . . Haulers Reinforced . | . . . . . . . . . . . . Active Scanning Responses . | . . . . . . . . . . . . Cargo Convoy Interrupts . | . . . . . . . . . . . . Stealth | -11 -10 -9 -9 -9 -8 -7 -7 -6 -5 -4 -4 --------- Run | Yrd Mat Mat Sto Gar Mat Fac DSF Fac Fac Fac Upp Distress Signals 8 | . . . 3 . . . . 1 3 1 . Communications Jammed . | . . . . . . . . . . . . Distress Signals . | . . . . . . . . . . . . Times Spotted 95 | . 3 2 8 17 3 . 4 11 23 10 14 Peak Tracking Total 16 | . 3 5 10 16 3 . 3 9 9 9 11 Tactical Retreats 11 | . . . 2 . . . 1 . 4 2 2 Traps | -11 -10 -9 -9 -9 -8 -7 -7 -6 -5 -4 -4 ------- Run | Yrd Mat Mat Sto Gar Mat Fac DSF Fac Fac Fac Upp Traps Triggered 4 | . . . . 1 . . 1 1 . 1 . Indirectly . | . . . . . . . . . . . . Trap Hack Attempts . | . . . . . . . . . . . . Triggered . | . . . . . . . . . . . . Disarmed . | . . . . . . . . . . . . Reprogrammed . | . . . . . . . . . . . . Reused . | . . . . . . . . . . . . Traps Extracted . | . . . . . . . . . . . . Installed . | . . . . . . . . . . . . Triggered . | . . . . . . . . . . . . Machines | -11 -10 -9 -9 -9 -8 -7 -7 -6 -5 -4 -4 ---------- Run | Yrd Mat Mat Sto Gar Mat Fac DSF Fac Fac Fac Upp Machines Disabled . | . . . . . . . . . . . . Max in Single Turn . | . . . . . . . . . . . . Machines Repaired . | . . . . . . . . . . . . Machines Dismantled . | . . . . . . . . . . . . Machines Sabotaged . | . . . . . . . . . . . . Overloaded Fab Kills . | . . . . . . . . . . . . Hacking | -11 -10 -9 -9 -9 -8 -7 -7 -6 -5 -4 -4 --------- Run | Yrd Mat Mat Sto Gar Mat Fac DSF Fac Fac Fac Upp Machines Accessed 14 | . 1 . 3 1 2 1 . 4 1 1 . Terminals 13 | . 1 . 2 1 2 1 . 4 1 1 . Fabricators . | . . . . . . . . . . . . Repair Stations . | . . . . . . . . . . . . Recycling Units . | . . . . . . . . . . . . Scanalyzers . | . . . . . . . . . . . . Garrison Access 1 | . . . 1 . . . . . . . . Total Hacks 29 | . 1 . 6 1 5 1 . 8 5 2 . Successful 12 | . 1 . 2 1 1 1 . 5 . 1 . Failed 17 | . . . 4 . 4 . . 3 5 1 . Catastrophic 4 | . . . 2 . 1 . . . 1 . . Database Lockouts . | . . . . . . . . . . . . Manual 18 | . . . 5 . 5 . . 4 4 . . Terminals 28 | . 1 . 5 1 5 1 . 8 5 2 . Fabricators . | . . . . . . . . . . . . Repair Stations . | . . . . . . . . . . . . Recycling Units . | . . . . . . . . . . . . Scanalyzers . | . . . . . . . . . . . . Garrison Access 1 | . . . 1 . . . . . . . . Terminal Hacks 9 | . 1 . . 1 1 1 . 4 . 1 . Open DSF 3 | . . . . . . 1 . 1 . 1 . Level Access Points 3 | . 1 . . . 1 . . 1 . . . Emergency Access Points 1 | . . . . 1 . . . . . . . Registered Components 1 | . . . . . . . . 1 . . . Zone Layout 1 | . . . . . . . . 1 . . . Fabricator Hacks . | . . . . . . . . . . . . Repair Station Hacks . | . . . . . . . . . . . . Recycling Unit Hacks . | . . . . . . . . . . . . Scanalyzer . | . . . . . . . . . . . . Garrison Access Hacks 1 | . . . 1 . . . . . . . . Unlock Access 1 | . . . 1 . . . . . . . . Unauthorized Hacks 2 | . . . 1 . . . . 1 . . . Terminals 2 | . . . 1 . . . . 1 . . . Assimilate 2 | . . . 1 . . . . 1 . . . Fabricators . | . . . . . . . . . . . . Repair Stations . | . . . . . . . . . . . . Recycling Units . | . . . . . . . . . . . . Scanalyzers . | . . . . . . . . . . . . Garrison Access . | . . . . . . . . . . . . Data Cores Recovered . | . . . . . . . . . . . . Used . | . . . . . . . . . . . . Hacking Detections 9 | . . . 2 . 1 1 . 4 1 . . Full Trace Events 4 | . . . 1 . 1 . . 1 1 . . Feedback Events . | . . . . . . . . . . . . Feedback Blocked . | . . . . . . . . . . . . Robot Schematics Acquired . | . . . . . . . . . . . . Robots Built . | . . . . . . . . . . . . Authchips . | . . . . . . . . . . . . Time . | . . . . . . . . . . . . Total Robot Build Rating . | . . . . . . . . . . . . Part Schematics Acquired . | . . . . . . . . . . . . Parts Built . | . . . . . . . . . . . . Authchips . | . . . . . . . . . . . . Time . | . . . . . . . . . . . . Total Part Build Rating . | . . . . . . . . . . . . Parts Repaired . | . . . . . . . . . . . . Time . | . . . . . . . . . . . . Parts Recycled . | . . . . . . . . . . . . Recycled Matter . | . . . . . . . . . . . . Retrieved Matter . | . . . . . . . . . . . . Retrieved Components . | . . . . . . . . . . . . Parts Scanalyzed . | . . . . . . . . . . . . Part Schematics Acquired . | . . . . . . . . . . . . Parts Damaged . | . . . . . . . . . . . . Bothacking | -11 -10 -9 -9 -9 -8 -7 -7 -6 -5 -4 -4 ------------ Run | Yrd Mat Mat Sto Gar Mat Fac DSF Fac Fac Fac Upp Used RIF Installer 1 | . . . . 1 . . . . . . . Robots Hacked . | . . . . . . . . . . . . Non-combat . | . . . . . . . . . . . . Combat . | . . . . . . . . . . . . Robot Hacks Applied . | . . . . . . . . . . . . Relay Couplers Released . | . . . . . . . . . . . . Fabnet Peak Effective % . | . . . . . . . . . . . . Robots Rewired . | . . . . . . . . . . . . Allies Hacked . | . . . . . . . . . . . . Hacks Repelled . | . . . . . . . . . . . . Allies | -11 -10 -9 -9 -9 -8 -7 -7 -6 -5 -4 -4 -------- Run | Yrd Mat Mat Sto Gar Mat Fac DSF Fac Fac Fac Upp Total Allies 1 | . . . 1 . . . . . . . . Largest Group 1 | . . . 1 . . . . . . . . Highest-Rated Group 10 | . . . 10 . . . . . . . . Highest-Rated Ally 10 | . . . 10 . . . . . . . . Total Orders 1 | . . . 1 . . . . . . . . FOLLOW 1 | . . . 1 . . . . . . . . Ally Attacks . | . . . . . . . . . . . . Total Damage . | . . . . . . . . . . . . Kills . | . . . . . . . . . . . . Allies Corrupted . | . . . . . . . . . . . . Allies Melted . | . . . . . . . . . . . . Intel | -11 -10 -9 -9 -9 -8 -7 -7 -6 -5 -4 -4 ------- Run | Yrd Mat Mat Sto Gar Mat Fac DSF Fac Fac Fac Upp Robot Analysis Total . | . . . . . . . . . . . . Derelict Logs Recovered 2 | . . . . . . . . . . . 2 Drone Launches . | . . . . . . . . . . . . Drone Recoveries . | . . . . . . . . . . . . Exploration | -11 -10 -9 -9 -9 -8 -7 -7 -6 -5 -4 -4 ------------- Run | Yrd Mat Mat Sto Gar Mat Fac DSF Fac Fac Fac Upp Turns Passed 991 | 11 33 17 61 79 42 7 69 120 260 185 107 Spaces Moved 1833 | 19 63 34 119 129 68 14 92 220 509 352 214 Core 1833 | 19 63 34 119 129 68 14 92 220 509 352 214 Treads . | . . . . . . . . . . . . Legs . | . . . . . . . . . . . . Wheels . | . . . . . . . . . . . . Hover . | . . . . . . . . . . . . Flight . | . . . . . . . . . . . . Fastest Speed 50 | 50 50 50 50 50 50 50 50 50 50 50 50 Average Speed 50 | 50 50 50 50 50 50 50 50 50 50 50 50 Slowest Speed 50 | 50 50 50 50 50 50 50 50 50 50 50 50 Overloaded Moves . | . . . . . . . . . . . . Propulsion Burnouts . | . . . . . . . . . . . . Robots Hopped . | . . . . . . . . . . . . Cave-ins Triggered . | . . . . . . . . . . . . Exploration Rate (%) 24 | 3 21 10 41 32 11 1 85 12 26 14 42 Regions Visited 11 Branch Regions 2 Pre-discovered Areas 1 | . . . . . . . . . . . 1 Known Exits Taken 5 | . 1 . 1 . 1 1 . 1 . . . Unknown Exits Taken 4 | 1 . 1 . . . . . . 1 1 . Scrap Searched 1 | . . . . . . . . . . . 1 Spaces Dug . | . . . . . . . . . . . . Terrain Destroyed . | . . . . . . . . . . . . Melee . | . . . . . . . . . . . . Projectile . | . . . . . . . . . . . . AOE . | . . . . . . . . . . . . Terrain Rammed . | . . . . . . . . . . . . Walls Destroyed . | . . . . . . . . . . . . Machines Disabled . | . . . . . . . . . . . . Actions | -11 -10 -9 -9 -9 -8 -7 -7 -6 -5 -4 -4 --------- Run | Yrd Mat Mat Sto Gar Mat Fac DSF Fac Fac Fac Upp Total 1890 | 19 63 33 119 142 74 13 111 229 513 360 214 Wait 1 | . . . 1 . . . . . . . . Move 1821 | 18 62 33 118 127 67 13 91 219 508 351 214 Hop . | . . . . . . . . . . . . Pick Up 1 | . 1 . . . . . . . . . . Fast Attach 8 | . . . . . 1 . 6 . 1 . . Attach . | . . . . . . . . . . . . Detach 1 | . . . . . . . . . 1 . . Swap . | . . . . . . . . . . . . Drop . | . . . . . . . . . . . . Fire . | . . . . . . . . . . . . Melee . | . . . . . . . . . . . . Ram 29 | 1 . . . . 6 . . 10 3 9 . Kick . | . . . . . . . . . . . . Crush . | . . . . . . . . . . . . Escape Stasis 29 | . . . . 15 . . 14 . . . . Rewire . | . . . . . . . . . . . . Trap . | . . . . . . . . . . . . Miscellaneous . | . . . . . . . . . . . . Route ------- -11/Scrapyard -10/Materials (discovered 4 exits: *Mat x3 / [*Min]) -9/Materials -9/Storage -9/Garrison -8/Materials (discovered 3 exits: *Fac x3) -7/Factory -7/DSF -6/Factory (discovered 4 exits: *Fac x4) -5/Factory -4/Factory (discovered 2 exits: [*Upp] / [*Arm]) -4/Upper Caves History --------- Turn | Location | Event 3 | -11/Scrapyard | Discovered new exit (range 16) 12 | -11/Scrapyard | Entered Materials 15 | -10/Materials | Identified exit to Materials 18 | -10/Materials | Discovered new exit (range 16) 45 | -10/Materials | Entered another Materials area 45 | -9/Materials | Evolved 2 slots: Utility x2 60 | -9/Materials | Discovered new exit (range 4) 62 | -9/Materials | Entered Storage 121 | -9/Storage | Identified exit to Garrison 123 | -9/Storage | Entered Garrison 134 | -9/Garrison | Installed Relay Interface Framework 179 | -9/Garrison | Triggered checkpoint 179 | -9/Garrison | Triggered checkpoint 181 | -9/Garrison | Triggered checkpoint 190 | -9/Garrison | Core integrity fell below 50% 191 | -9/Garrison | Triggered checkpoint 197 | -9/Garrison | Discovered new exit (range 10) 199 | -9/Garrison | Core integrity fell below 20% 202 | -9/Garrison | Entered Materials 202 | -8/Materials | Evolved 2 slots: Utility x2 227 | -8/Materials | Identified exit to Factory 244 | -8/Materials | Entered Factory 244 | -7/Factory | Evolved 2 slots: Utility x2 251 | -7/Factory | Identified exit to DSF 251 | -7/Factory | Entered DSF 273 | -7/DSF | Additional patrols routed to DSF 278 | -7/DSF | Core integrity fell below 50% 300 | -7/DSF | Core integrity fell below 20% 300 | -7/DSF | Discovered new exit (range 11) 320 | -7/DSF | Entered Factory 320 | -6/Factory | Evolved 2 slots: Utility x2 332 | -6/Factory | Identified exit to Factory 399 | -6/Factory | Core integrity fell below 50% 439 | -6/Factory | Core integrity fell below 20% 440 | -6/Factory | Entered another Factory area 440 | -5/Factory | Evolved 2 slots: Utility x2 670 | -5/Factory | Core integrity fell below 50% 690 | -5/Factory | Discovered new exit (range 16) 700 | -5/Factory | Entered another Factory area 700 | -4/Factory | Evolved 2 slots: Utility x2 776 | -4/Factory | Discovered new exit (range 12) 860 | -4/Factory | Build established: Mutant 881 | -4/Factory | Discovered new exit (range 9) 885 | -4/Factory | Entered Upper Caves 904 | -4/Upper Caves | Attracted the attention of an 0b10 outpost 918 | -4/Upper Caves | Learned Research terminal intel 951 | -4/Upper Caves | Learned location of Testing (-2) 952 | -4/Upper Caves | Core integrity fell below 50% 983 | -4/Upper Caves | Core integrity fell below 20% 992 | -4/Upper Caves | Destroyed by S-27 Virus with Autogun Last Messages --------------- 00851_ Slammed into U-05 Engineer. 00853_ Slammed into A-15 Conveyor. 00860_ Slammed into U-05 Engineer. 00861_ K-01 Serf cleans the Matter Pump. 00881_ EXIT=FOUND LOCATION=UNKNOWN GOAL=ESCAPE 00898_ M-30 Cleanser reprogrammed Fire Trap. 00904_ Y-72 Warden: "DETECTED UNIDENTIFIED DERELICT." 00908_ Y-72 Warden: "REQUESTING BACKUP." 00908_ Searching scrap... 00908_ Found Target Analyzer. 00908_ Found Impulse Thruster. 00908_ Found Hardcell Cannon. 00908_ Found 36 Matter. 00918_ Acquired derelict log, extracted data. Data stored: Research terminal intel. 00951_ Acquired derelict log, extracted data. World map updated: -2/Testing. 00989_ Penetrated by Slug. Map ----- +----------------------------------------------------+ | ?????????????????????????????????????????????????? | | ?????????????????????????????????????????????????? | | ?????????????????????????????????????????????????? | | ?????????????????????????????????????????????????? | | ?????????????????????????????????????????????????? | | ?????????????????????????????????????????????????? | | ?????????????????????????????????????????????????? | | ?????????????????????????????????????????????????? | | ?????????????????????????????????????????????????? | | ?????????????????????????????????????????????????? | | ?????????????????????????????????????????????????? | | ????????????????????????????????????????????????## | | ???????????????????????????????????????????????## | | ???????????????????????????????????????????????# | | ???????????????????????????????????????????????# | | ???????????????????????????????????????????????## | | ????????????????????????????????????????????????# | | ??????????????? ????????????????????????????????## | | ?????????????? ????????????????????????????????# | | ??????????????? ???###?????????################ | | ?????????????? ### ##########s # | | ?????????????? sss # | | ????????????? s s ###### # ### | | ??????????????# ### ##???## # ##? | | ???????????????? #### ###?# #????# #? | | ????????????????????????#@ ##???# #???# #? | | ????????????????????????# ##???? #???# ###? | | ????????????????????????# #???? ?? #??? | | ????????????????????????# ??? #??? | | ????????????????????????# ?## ### ??? | | ????????????????????????######?## #??## ??? | | ????????????????????????????????## ##???### ?? | | ?????????????????????????????????####??????#####?? | | ?????????????????????????????????????????????????? | | ?????????????????????????????????????????????????? | | ?????????????????????????????????????????????????? | | ?????????????????????????????????????????????????? | | ?????????????????????????????????????????????????? | | ?????????????????????????????????????????????????? | | ?????????????????????????????????????????????????? | | ?????????????????????????????????????????????????? | | ?????????????????????????????????????????????????? | | ?????????????????????????????????????????????????? | | ?????????????????????????????????????????????????? | | ?????????????????????????????????????????????????? | | ?????????????????????????????????????????????????? | | ?????????????????????????????????????????????????? | | ?????????????????????????????????????????????????? | | | | | +----------------------------------------------------+ Best States ------------- Heat Dissipation 43 Energy Generation 5 Energy Capacity 100 Matter Stores 300 Matter Capacity 300 Sight Range 16 Terrain Scan Density 10 Base Temperature (-) 100 Evasion (%) 50 Offensive Hacking 72 Item Schematics ----------------- None Robot Schematics ------------------ None Fabricated ------------ Nothing Alien Tech Used ----------------- None Achievements -------------- None Challenges ------------ None Game ------ Seed ActiveGravmagBiocell Manual? 0 Play Time 00:23:58 Cumulative 53.9 hours Start 2024.04.15 @ 02:07:39 End 2024.04.15 @ 02:31:15 Sessions 1 Manual Loads 0 Difficulty Rogue Special Mode None Game No. 38 Rogue 38 Adventurer 0 Explorer 0 Win Type - Total 5 Types 4/0/1/0/0/0/0/0/0 Lore% 45 Gallery% 32 Achievement% 36 Wizard Run 0 Options --------- Layout 0 ASCII 0 Keyboard 0 Movement Numpad Keybinds 0 Fullscreen 2 Font 18/SmallcapsGlow Map View 112x50 Zoom Use 0% Tactical HUD 1 Map Filters NONE Filters NONE Steam 1 RUN: 952face2-372b-4fd6-b5c7-38c6b13c72cc